bitfinex-derivatives/quotes_BTCF0:USTF0_20250504
["timestamp","ask_amount","ask_price","bid_price","bid_amount"]
[1746387767466,0.118,95622.0,95621.0,1.2528277]
[1746387768271,0.118,95622.0,95621.0,0.8920277]
[1746387768475,0.118,95622.0,95621.0,1.2528277]
[1746387776080,0.118,95622.0,95621.0,0.8928277]
[1746387778079,0.118,95622.0,95621.0,0.8728277]
[1746387778471,0.118,95622.0,95621.0,0.9028277]
[1746387778881,0.118,95622.0,95621.0,0.9038277]
[1746387779583,0.118,95622.0,95621.0,0.9028277]
[1746387779786,0.118,95622.0,95621.0,0.9038277]
[1746387782788,0.3271255,95622.0,95621.0,0.9038277]
[1746387783176,0.3271255,95622.0,95621.0,0.9663077]
[1746387785079,0.3271255,95622.0,95621.0,0.75718]
[1746387785275,0.118,95622.0,95621.0,0.75718]
[1746387785478,0.118,95622.0,95621.0,0.9663077]
[1746387788382,0.3271255,95622.0,95621.0,0.75718]
[1746387789089,0.118,95622.0,95621.0,0.75718]
[1746387789580,0.118,95622.0,95621.0,0.6055077]
[1746387791381,0.3271255,95622.0,95621.0,0.39638]
[1746387791982,0.3464255,95622.0,95621.0,0.39638]
[1746387792382,0.3464255,95622.0,95621.0,0.6055077]
[1746387792692,0.3464255,95622.0,95621.0,0.39638]
[1746387793492,0.3464255,95622.0,95621.0,0.6055077]
[1746387794191,0.3271255,95622.0,95621.0,0.6055077]
[1746387795698,0.118,95622.0,95621.0,0.6055077]
[1746387821614,0.3271255,95622.0,95621.0,0.3032]
[1746387821818,0.3271255,95622.0,95621.0,0.23568]
[1746387822413,0.3792255,95622.0,95621.0,0.1732]
[1746387823420,0.3792255,95622.0,95621.0,0.141]
[1746387823421,0.7338055,95622.0,95621.0,0.141]
[1746387823909,0.4838055,95622.0,95621.0,0.141]
[1746387825320,0.4838055,95622.0,95621.0,0.1732]
[1746387826412,0.8446055,95622.0,95621.0,0.1732]
[1746387833021,0.7400255,95622.0,95621.0,0.1732]
[1746387833418,0.7207255,95622.0,95621.0,0.1732]
[1746387833827,0.7207255,95622.0,95621.0,0.1832]
[1746387834020,0.7207255,95622.0,95621.0,0.1732]
[1746387834326,0.6879255,95622.0,95621.0,0.1732]
[1746387837941,0.7195255,95622.0,95621.0,0.1732]
[1746387843547,0.7520255,95622.0,95621.0,0.1732]
[1746387847155,0.7195255,95622.0,95621.0,0.1732]
[1746387848057,0.6879255,95622.0,95621.0,0.1732]
[1746387848957,0.6899255,95622.0,95621.0,0.1722]
[1746387849757,0.6929255,95622.0,95621.0,0.1722]
[1746387850355,0.3321255,95622.0,95621.0,0.1722]
[1746387850551,0.6929255,95622.0,95621.0,0.1722]
[1746387852458,0.3321255,95622.0,95621.0,0.1722]
[1746387852658,0.6929255,95622.0,95621.0,0.1722]
[1746387853357,0.4120854,95622.0,95621.0,0.1722]
[1746387853559,0.7728854,95622.0,95621.0,0.1722]
[1746387853754,0.4120854,95622.0,95621.0,0.1722]
[1746387853953,0.7728854,95622.0,95621.0,0.1722]
[1746387854348,0.7728854,95622.0,95621.0,0.1822]
[1746387854859,0.7728854,95622.0,95621.0,0.3913277]
[1746387855058,0.7728854,95622.0,95621.0,0.1822]
[1746387855764,0.7728854,95622.0,95621.0,0.3913277]
[1746387855953,0.6929255,95622.0,95621.0,0.4232277]
[1746387861069,0.6929255,95622.0,95621.0,0.4532277]
[1746387862168,0.6929255,95622.0,95621.0,0.2122]
[1746387862367,0.6929255,95622.0,95621.0,0.1822]
[1746387862661,0.6929255,95622.0,95621.0,0.1722]
[1746387862868,0.6919255,95622.0,95621.0,0.1722]
[1746387863262,0.6899255,95622.0,95621.0,0.1722]
[1746387863459,0.6929255,95622.0,95621.0,0.1722]
[1746387863870,0.6909255,95622.0,95621.0,0.1722]
[1746387864170,0.6919255,95622.0,95621.0,0.1722]
[1746387864760,0.6929255,95622.0,95621.0,0.1722]
[1746387867862,0.77289787,95622.0,95621.0,0.1722]
[1746387875480,0.6929255,95622.0,95621.0,0.1722]
[1746387879487,0.3321255,95622.0,95621.0,0.1722]
[1746387882792,0.3321255,95622.0,95621.0,0.2038]
[1746387903304,0.3321255,95622.0,95621.0,0.2838]
[1746387903602,0.123,95622.0,95621.0,0.8329277]
[1746387903903,0.123,95622.0,95621.0,0.9329277]
[1746387904097,0.005,95622.0,95621.0,0.9329277]
[1746387905100,0.005,95622.0,95621.0,1.0509277]
[1746387905303,0.10637869,95625.0,95624.0,0.2091211]
[1746387905304,0.31549819,95625.0,95624.0,0.2091211]
[1746387905495,0.31549819,95625.0,95624.0,0.7791211]
[1746387906092,0.31549819,95625.0,95624.0,0.8760211]
[1746387906297,0.31549819,95625.0,95624.0,0.9940211]
[1746387907698,0.31949819,95625.0,95624.0,0.9940211]
[1746387907996,0.32249819,95625.0,95624.0,0.9940211]
[1746387909199,0.32249819,95625.0,95624.0,0.8760211]
[1746387913506,0.11337869,95625.0,95624.0,0.8760211]
[1746387913913,0.11337869,95625.0,95624.0,1.2368211]
[1746387914112,0.11337869,95625.0,95624.0,1.3548211]
[1746387914303,0.11337869,95625.0,95624.0,1.4593971]
[1746387914504,0.007,95625.0,95624.0,1.4593971]
[1746387915310,0.007,95625.0,95624.0,1.47010837]
[1746387916213,0.004,95625.0,95624.0,1.47010837]
[1746387917117,0.001,95625.0,95624.0,1.47010837]
[1746387919116,0.001,95625.0,95624.0,1.83090837]
[1746387921217,0.001,95625.0,95624.0,1.71290837]
[1746387933323,0.119,95625.0,95624.0,1.71290837]
[1746387938025,0.119,95625.0,95624.0,1.60833237]
[1746387939326,0.001,95625.0,95624.0,1.60833237]
[1746387939626,0.001,95625.0,95624.0,1.85833237]
[1746387940129,0.119,95625.0,95624.0,1.85833237]
[1746387941227,0.001,95625.0,95624.0,1.85833237]
[1746387941631,0.0331,95635.0,95634.0,0.2090992]
[1746387941820,0.0331,95635.0,95634.0,1.3123392]
[1746387942221,0.1511,95635.0,95634.0,1.3123392]
[1746387942516,0.1511,95635.0,95634.0,1.3786392]
[1746387942720,0.1531,95635.0,95634.0,1.3786392]
[1746387943230,0.1551,95635.0,95634.0,1.3786392]
[1746387956141,0.1744,95635.0,95634.0,1.3786392]
[1746387956839,0.1744,95635.0,95634.0,1.0178392]
[1746387957041,0.1744,95635.0,95634.0,1.3786392]
[1746387958257,0.1744,95635.0,95634.0,1.3453392]
[1746387958442,0.383497,95635.0,95634.0,0.8615392]
[1746387958648,0.383497,95635.0,95634.0,0.59]
[1746387958847,0.488061,95635.0,95634.0,0.65244]
[1746387960057,0.383497,95635.0,95634.0,0.65244]
[1746387961151,0.383497,95635.0,95634.0,0.8615392]
[1746387973361,0.383497,95635.0,95634.0,0.8934392]
[1746387973765,0.382497,95635.0,95634.0,0.8934392]
[1746387974468,0.381497,95635.0,95634.0,0.8934392]
[1746387974667,0.383497,95635.0,95634.0,0.8934392]
[1746387974857,0.364197,95635.0,95634.0,0.8934392]
[1746387975058,0.364197,95635.0,95634.0,0.9240392]
[1746387976767,0.363197,95635.0,95634.0,0.9240392]
[1746387977565,0.364197,95635.0,95634.0,0.9240392]
[1746387978370,0.363197,95635.0,95634.0,0.9240392]
[1746387979469,0.330097,95635.0,95634.0,0.9240392]
[1746387991075,0.330097,95635.0,95634.0,0.8615992]
[1746387991261,0.330097,95635.0,95634.0,0.6525]
[1746387991467,0.330097,95635.0,95634.0,0.6828]
[1746387993876,0.40995896,95635.0,95634.0,0.6828]
[1746387995479,0.40995896,95635.0,95634.0,0.6522]
[1746387995872,0.44095896,95635.0,95634.0,0.6522]
[1746387996076,0.47275896,95635.0,95634.0,0.6522]
[1746387997282,0.392897,95635.0,95634.0,0.6522]
[1746388002587,0.497461,95635.0,95634.0,0.6219]
[1746388002879,0.2091211,95624.0,95623.0,0.06244]
[1746388003076,0.6879211,95624.0,95623.0,0.17244]
[1746388003887,0.7384211,95624.0,95623.0,0.17244]
[1746388004090,0.7384211,95624.0,95623.0,0.17344]
[1746388004291,0.7384211,95624.0,95623.0,0.17444]
[1746388005179,0.74914809,95624.0,95623.0,0.17444]
[1746388007283,0.74914809,95624.0,95623.0,0.112]
[1746388007680,0.74914809,95624.0,95623.0,0.111]
[1746388007879,0.75214809,95624.0,95623.0,0.111]
[1746388008284,0.75414809,95624.0,95623.0,0.11]
[1746388008480,0.2091342,95618.0,95617.0,0.0634]
[1746388008686,0.2091342,95618.0,95617.0,0.1234]
[1746388009190,0.3271342,95618.0,95617.0,0.1234]
[1746388009486,0.4183342,95618.0,95617.0,0.1234]
[1746388009887,0.4183342,95618.0,95617.0,0.0914]
[1746388010083,0.4203342,95618.0,95617.0,0.0914]
[1746388010285,0.4213342,95618.0,95617.0,0.0914]
[1746388013896,0.52591821,95618.0,95617.0,0.0914]
[1746388018194,0.4213342,95618.0,95617.0,0.0914]
[1746388018896,0.52591821,95618.0,95617.0,0.0410545]
[1746388019197,0.2091758,95599.0,95597.0,0.24]
[1746388019399,0.2091758,95599.0,95598.0,0.14156908]
[1746388020195,0.3271758,95599.0,95598.0,0.14156908]
[1746388020400,0.3271758,95599.0,95598.0,0.14456908]
[1746388020603,0.3271758,95599.0,95598.0,0.14656908]
[1746388021098,0.33509542,95599.0,95598.0,0.14656908]
[1746388021306,0.33509542,95599.0,95598.0,0.17846908]
[1746388022192,0.33509542,95599.0,95598.0,0.21036908]
[1746388022909,0.33509542,95599.0,95598.0,0.20736908]
[1746388023199,0.33509542,95599.0,95598.0,0.20936908]
[1746388027304,0.33509542,95599.0,95598.0,0.20836908]
[1746388027703,0.33509542,95599.0,95598.0,0.20736908]
[1746388028303,0.33509542,95599.0,95598.0,0.20636908]
[1746388029004,0.33509542,95599.0,95598.0,0.20536908]
[1746388029201,0.33509542,95599.0,95598.0,0.20636908]
[1746388030304,0.33509542,95599.0,95598.0,0.41554708]
[1746388032705,0.33509542,95599.0,95598.0,0.20636908]
[1746388035710,0.33509542,95599.0,95593.0,0.15905726]
[1746388035711,0.2091867,95594.0,95593.0,0.15905726]
[1746388035901,0.5699867,95594.0,95593.0,0.15905726]
[1746388036094,0.7925947,95594.0,95593.0,0.15905726]
[1746388036599,0.7195867,95594.0,95593.0,0.15905726]
[1746388036799,0.7195867,95594.0,95593.0,0.16005726]
[1746388037607,0.7195867,95594.0,95593.0,0.16205726]
[1746388039115,0.72981106,95594.0,95593.0,0.16205726]
[1746388050312,0.72981106,95594.0,95593.0,0.16005726]
[1746388050502,0.73181106,95594.0,95593.0,0.15905726]
[1746388051006,0.73081106,95594.0,95593.0,0.15905726]
[1746388051315,0.73181106,95594.0,95593.0,0.15905726]
[1746388065511,0.73181106,95594.0,95593.0,0.11147476]
[1746388065712,0.76251106,95594.0,95593.0,6e-08]
[1746388065910,0.209202,95587.0,95586.0,0.0303]
[1746388066109,0.209202,95587.0,95566.0,0.17244]
[1746388066110,0.2092414,95569.0,95566.0,0.17244]
[1746388066315,0.2092414,95569.0,95568.0,0.524]
[1746388066711,0.2092414,95569.0,95568.0,0.564]
[1746388066915,0.2092414,95569.0,95568.0,0.7332436]
[1746388067115,0.3272414,95569.0,95568.0,0.7332436]
[1746388069113,0.3272414,95569.0,95568.0,0.7362436]
[1746388069304,0.3272414,95569.0,95568.0,0.7402436]
[1746388071622,0.3272414,95569.0,95568.0,0.7713436]
[1746388072823,0.3272414,95569.0,95568.0,0.7693436]
[1746388073128,0.2092376,95577.0,95576.0,0.3138259]
[1746388073421,0.2092376,95577.0,95576.0,0.4538259]
[1746388074127,0.3272376,95577.0,95576.0,0.4538259]
[1746388075324,0.3272376,95577.0,95576.0,0.4015197]
[1746388077529,0.3272376,95577.0,95576.0,0.4653197]
[1746388079231,0.3272376,95577.0,95576.0,0.8261197]
[1746388079434,0.3272239,95577.0,95576.0,0.9761197]
[1746388080123,0.2092239,95577.0,95576.0,0.9761197]
[1746388084339,0.2092239,95577.0,95576.0,1.0807477]
[1746388085935,0.2092184,95580.0,95579.0,0.2615196]
[1746388086131,0.2092184,95580.0,95579.0,0.6251596]
[1746388087330,0.2102184,95580.0,95579.0,0.6251596]
[1746388087537,0.2112184,95580.0,95579.0,0.6251596]
[1746388087833,0.002,95580.0,95579.0,0.6251596]
[1746388088236,0.002,95580.0,95579.0,0.7431596]
[1746388089142,0.002,95580.0,95579.0,0.6251596]
[1746388089436,0.001,95580.0,95579.0,0.6251596]
[1746388090340,0.2092092,95584.0,95583.0,0.2092108]
[1746388090545,0.2092092,95584.0,95583.0,0.4692108]
[1746388091337,0.2092092,95584.0,95583.0,0.5299108]
[1746388094035,0.2102092,95584.0,95583.0,0.5299108]
[1746388094241,0.2102092,95584.0,95583.0,0.8907108]
[1746388096939,0.2102092,95584.0,95583.0,0.5299108]
[1746388097135,0.2102092,95584.0,95583.0,0.8907108]
[1746388099145,0.2092092,95584.0,95583.0,0.5299108]
[1746388099341,0.2102092,95584.0,95583.0,0.8907108]
[1746388102646,0.2112092,95584.0,95583.0,0.8907108]
[1746388103145,0.3292092,95584.0,95583.0,0.8907108]
[1746388103650,0.3282092,95584.0,95583.0,0.8907108]
[1746388103944,0.3292092,95584.0,95583.0,0.9535108]
[1746388104446,0.3282092,95584.0,95583.0,0.9535108]
[1746388104634,0.3292092,95584.0,95583.0,0.9535108]
[1746388105936,0.3292092,95584.0,95583.0,0.2028]
[1746388106445,0.3942092,95584.0,95583.0,0.4120108]
[1746388107838,0.3942092,95584.0,95583.0,0.4320108]
[1746388108038,0.3942092,95584.0,95583.0,0.4120108]
[1746388114447,0.3942092,95584.0,95583.0,0.3492108]
[1746388118443,0.3942092,95584.0,95583.0,0.3803108]
[1746388128161,0.3618092,95584.0,95583.0,0.4135108]
[1746388140472,0.3618092,95584.0,95583.0,0.4435108]
[1746388145167,0.2438092,95584.0,95583.0,0.4435108]
[1746388149271,0.3618092,95584.0,95583.0,0.4435108]
[1746388151381,0.2438092,95584.0,95583.0,0.4435108]
[1746388158189,0.3618092,95584.0,95583.0,0.4435108]
[1746388160287,0.2438092,95584.0,95583.0,0.4435108]
[1746388161080,0.3618092,95584.0,95583.0,0.4435108]
[1746388173788,0.3618092,95584.0,95583.0,0.4761108]
[1746388184501,0.3618092,95584.0,95583.0,0.8369108]
[1746388190907,0.3618092,95584.0,95583.0,0.5619]
[1746388191203,0.3618092,95584.0,95583.0,0.14]
[1746388191406,0.3918092,95584.0,95583.0,0.14]
[1746388194109,0.4020589,95584.0,95583.0,0.14]
[1746388198809,0.48204746,95584.0,95583.0,0.14]
[1746388206215,0.84284746,95584.0,95583.0,0.14]
[1746388210224,0.7628589,95584.0,95583.0,0.14]
[1746388213524,0.84284746,95584.0,95583.0,0.14]
[1746388214832,0.2092195,95579.0,95578.0,0.0313]
[1746388215123,0.3272195,95579.0,95578.0,0.1413]
[1746388215719,0.4201195,95579.0,95578.0,0.1413]
[1746388216822,0.3580195,95579.0,95578.0,0.1413]
[1746388217726,0.3590195,95579.0,95578.0,0.1413]
[1746388218427,0.3600195,95579.0,95578.0,0.1413]
[1746388228839,0.44000806,95579.0,95578.0,0.1413]
[1746388235331,0.3600195,95579.0,95578.0,0.1413]
[1746388252152,0.7208195,95579.0,95578.0,0.1413]
[1746388253854,0.7218195,95579.0,95578.0,0.1413]
[1746388254353,0.7198195,95579.0,95578.0,0.1413]
[1746388254554,0.7208195,95579.0,95578.0,0.1413]
[1746388254754,0.7228195,95579.0,95578.0,0.1413]
[1746388259351,0.2092349,95572.0,95571.0,0.0323]
[1746388259653,0.2092349,95572.0,95571.0,0.08]
[1746388259654,0.2615436,95572.0,95571.0,0.08]
[1746388260044,0.3245436,95572.0,95571.0,0.08]
[1746388260240,0.4425436,95572.0,95571.0,0.08]
[1746388260952,0.4425436,95572.0,95571.0,0.11]
[1746388261347,0.4435436,95572.0,95571.0,0.03]
[1746388262167,0.8043436,95572.0,95571.0,0.03]
[1746388262756,0.7723436,95572.0,95571.0,0.03]
[1746388262959,0.7723436,95572.0,95571.0,0.0624]
[1746388263258,0.7723436,95572.0,95571.0,0.1924]
[1746388264958,0.7733436,95572.0,95571.0,0.1924]
[1746388265956,0.7753436,95572.0,95571.0,0.1924]
[1746388267964,0.7753436,95572.0,95571.0,0.0624]
[1746388268662,0.7753436,95572.0,95571.0,0.03]
[1746388275272,0.4145436,95572.0,95571.0,0.03]
[1746388275567,0.7753436,95572.0,95571.0,0.03]
[1746388286686,0.4145436,95572.0,95571.0,0.03]
[1746388286887,0.7753436,95572.0,95571.0,0.03]
[1746388302702,0.2092611,95560.0,95559.0,7.445e-05]
[1746388303002,0.2092611,95560.0,95559.0,0.13007445]
[1746388303192,0.3272611,95560.0,95559.0,0.13007445]
[1746388303599,0.3892611,95560.0,95559.0,0.13007445]
[1746388304703,0.3892611,95560.0,95559.0,0.13107445]
[1746388305407,0.3578611,95560.0,95559.0,0.131]
[1746388305906,0.3578611,95560.0,95559.0,0.132]
[1746388306504,0.3578611,95560.0,95559.0,0.1653]
[1746388306704,0.3578611,95560.0,95559.0,0.1965]
[1746388308306,0.43785732,95560.0,95559.0,0.1965]
[1746388309810,0.47015732,95560.0,95559.0,0.1965]
[1746388311211,0.47115732,95560.0,95559.0,0.1955]
[1746388312211,0.3921611,95560.0,95559.0,0.1945]
[1746388314999,0.3921611,95560.0,95559.0,0.1612]
[1746388321024,0.3598611,95560.0,95559.0,0.1612]
[1746388327027,0.3292611,95560.0,95559.0,0.1612]
[1746388327328,0.2112611,95560.0,95559.0,0.5092]
[1746388328525,0.2112611,95560.0,95559.0,0.7495633]
[1746388350146,0.2112611,95560.0,95559.0,0.6315633]
[1746388352146,0.2112611,95560.0,95559.0,0.7495633]
[1746388353245,0.2112611,95560.0,95559.0,0.6315633]
[1746388361451,0.29121216,95560.0,95559.0,0.6315633]
[1746388364446,0.2112611,95560.0,95559.0,0.6315633]
[1746388364950,0.2433611,95560.0,95559.0,0.6315633]
[1746388367450,0.2433611,95560.0,95559.0,0.4223]
[1746388368661,0.2433611,95560.0,95559.0,0.6315633]
[1746388369453,0.2433611,95560.0,95559.0,0.4223]
[1746388369760,0.2736611,95560.0,95559.0,0.1612]
[1746388370361,0.2736611,95560.0,95559.0,0.3704633]
[1746388372557,0.35361216,95560.0,95559.0,0.3704633]
[1746388374262,0.35361216,95560.0,95559.0,0.1612]
[1746388375555,0.35361216,95560.0,95559.0,0.1928]
[1746388376462,0.35361216,95560.0,95559.0,0.4620633]
[1746388376666,0.32331216,95560.0,95559.0,0.4620633]
[1746388376858,0.2433611,95560.0,95559.0,0.4620633]
[1746388380665,0.32331216,95560.0,95559.0,0.4620633]
[1746388383172,0.44131216,95560.0,95559.0,0.4620633]
[1746388384361,0.32331216,95560.0,95559.0,0.4620633]
[1746388388864,0.2433611,95560.0,95559.0,0.4620633]
[1746388408481,0.2433611,95560.0,95559.0,0.8228633]
[1746388420080,0.2433611,95560.0,95559.0,0.9408633]
[1746388422189,0.2433611,95560.0,95559.0,0.8228633]
[1746388424097,0.2433611,95560.0,95559.0,0.9408633]
[1746388425197,0.2433611,95560.0,95559.0,0.8228633]
[1746388435801,0.2423611,95560.0,95559.0,0.8228633]
[1746388436510,0.2433611,95560.0,95559.0,0.8228633]
[1746388437300,0.2423611,95560.0,95559.0,0.8228633]
[1746388437507,0.2433611,95560.0,95559.0,0.8228633]
[1746388463032,0.2433611,95560.0,95559.0,0.8853433]
[1746388482945,0.2433611,95560.0,95559.0,0.8537433]
[1746388483845,0.2433611,95560.0,95559.0,0.8225433]
[1746388485147,0.3613611,95560.0,95559.0,0.8225433]
[1746388486246,0.3613611,95560.0,95559.0,0.8547433]
[1746388487150,0.2433611,95560.0,95559.0,0.8547433]
[1746388490247,0.3613611,95560.0,95559.0,0.8547433]
[1746388491151,0.2433611,95560.0,95559.0,0.8547433]
[1746388506463,0.2433611,95560.0,95559.0,0.7947433]
[1746388506760,0.2433611,95560.0,95559.0,0.9047433]
[1746388508764,0.2433611,95560.0,95559.0,0.5439433]
[1746388508971,0.2433611,95560.0,95559.0,0.9047433]
[1746388510873,0.2433611,95560.0,95559.0,0.5439433]
[1746388511071,0.2433611,95560.0,95559.0,0.9047433]
[1746388516777,0.2433611,95560.0,95559.0,0.5439433]
[1746388516979,0.2433611,95560.0,95559.0,0.9047433]
[1746388526483,0.2433611,95560.0,95559.0,0.5439433]
[1746388526674,0.2433611,95560.0,95559.0,0.9047433]
[1746388529287,0.388748,95560.0,95555.0,0.00104651]
[1746388529583,0.2092699,95556.0,95555.0,0.08104651]
[1746388529987,0.3139219,95556.0,95555.0,0.08104651]
[1746388530185,0.4319219,95556.0,95555.0,0.08104651]
[1746388530485,0.5245219,95556.0,95555.0,0.08104651]
[1746388530885,0.53519603,95556.0,95555.0,0.08104651]
[1746388538192,0.43054403,95556.0,95555.0,0.08104651]
[1746388549105,0.36794403,95556.0,95555.0,0.08104651]
[1746388549301,0.36794403,95556.0,95555.0,0.17254651]
[1746388549604,0.36794403,95556.0,95555.0,0.14254651]
[1746388550302,0.24994403,95556.0,95555.0,0.14254651]
[1746388555307,0.07998306,95559.0,95558.0,0.2092655]
[1746388555508,0.07998306,95559.0,95558.0,0.3892655]
[1746388555695,0.07998306,95559.0,95558.0,0.6592655]
[1746388556101,0.28924636,95559.0,95558.0,0.8074655]
[1746388556703,0.29124636,95559.0,95558.0,0.8074655]
[1746388558310,0.29124636,95559.0,95558.0,1.1682655]
[1746388559917,0.2112633,95559.0,95558.0,1.1682655]
[1746388569426,0.2112633,95559.0,95558.0,0.959]
[1746388569626,0.2112633,95559.0,95558.0,1.1682655]
[1746388569826,0.2112633,95559.0,95558.0,0.8985655]
[1746388570022,0.2112633,95559.0,95558.0,0.9285655]
[1746388570328,0.2112633,95559.0,95558.0,0.8105655]
[1746388571936,0.2112633,95559.0,95558.0,0.4497655]
[1746388572127,0.2112633,95559.0,95558.0,0.8105655]
[1746388577034,0.2112633,95559.0,95558.0,0.4497655]
[1746388577235,0.2112633,95559.0,95558.0,0.8105655]
[1746388581739,0.2428633,95559.0,95558.0,0.8105655]
[1746388584641,0.2750633,95559.0,95558.0,0.8105655]
[1746388585542,0.2750633,95559.0,95558.0,0.4497655]
[1746388585842,0.2750633,95559.0,95558.0,0.8105655]
[1746388591343,0.28574493,95559.0,95558.0,0.8105655]
[1746388594645,0.2750633,95559.0,95558.0,0.8105655]
[1746388596149,0.28578163,95559.0,95558.0,0.8105655]
[1746388600452,0.2750633,95559.0,95558.0,0.8105655]
[1746388605357,0.2750633,95559.0,95558.0,0.571]
[1746388605558,0.2750633,95559.0,95558.0,0.541]
[1746388606259,0.3930633,95559.0,95558.0,0.541]
[1746388616966,0.3930633,95559.0,95558.0,0.1802]
[1746388620770,0.3930633,95559.0,95558.0,0.15]
[1746388622764,0.4244633,95559.0,95558.0,0.15]
[1746388623268,0.5291113,95559.0,95558.0,0.15]
[1746388625069,0.4244633,95559.0,95558.0,0.15]
[1746388634676,0.4244633,95559.0,95558.0,0.1829]
[1746388642778,0.3930633,95559.0,95558.0,0.1829]
[1746388659992,0.49972492,95559.0,95558.0,0.1829]
[1746388663096,0.38172492,95559.0,95558.0,0.1829]
[1746388663692,0.2750633,95559.0,95558.0,0.1829]
[1746388666206,0.2434633,95559.0,95558.0,0.1829]
[1746388668501,0.2434633,95559.0,95558.0,0.3921655]
[1746388668502,0.002,95559.0,95558.0,0.3921655]
[1746388668702,0.2112633,95559.0,95558.0,0.3921655]
[1746388669102,0.2112633,95559.0,95558.0,0.5101655]
[1746388675425,0.2112633,95559.0,95558.0,0.5401655]
[1746388676125,0.2112633,95559.0,95558.0,0.5101655]
[1746388677624,0.2112633,95559.0,95558.0,0.5201655]
[1746388678125,0.2112633,95559.0,95558.0,0.5101655]
[1746388680116,0.2112633,95559.0,95558.0,0.5726055]
[1746388680317,0.2112633,95559.0,95558.0,0.6026055]
[1746388682525,0.2112633,95559.0,95558.0,0.5726055]
[1746388682727,0.2112633,95559.0,95558.0,0.6026055]
[1746388683626,0.2112633,95559.0,95558.0,0.5726055]
[1746388683925,0.2112633,95559.0,95558.0,0.6026055]
[1746388684927,0.2112633,95559.0,95558.0,0.5726055]
[1746388685228,0.2112633,95559.0,95558.0,0.6026055]
[1746388686132,0.2112633,95559.0,95558.0,0.5726055]
[1746388686527,0.2112633,95559.0,95558.0,0.6026055]
[1746388687529,0.2112633,95559.0,95558.0,0.5926055]
[1746388692125,0.2112633,95559.0,95558.0,0.4746055]
[1746388693136,0.2112633,95559.0,95558.0,0.5926055]
[1746388698744,0.2418633,95559.0,95558.0,0.5926055]
[1746388716150,0.2418633,95559.0,95558.0,0.4746055]
[1746388717150,0.2418633,95559.0,95558.0,0.5926055]
[1746388717847,0.002,95559.0,95558.0,0.5926055]
[1746388721554,0.08001732,95566.0,95565.0,0.2092502]
[1746388721753,0.08001732,95566.0,95565.0,0.8700502]
[1746388722143,0.08001732,95566.0,95565.0,0.9880502]
[1746388722347,0.08001732,95566.0,95565.0,1.06055789]
[1746388723443,0.08201732,95566.0,95565.0,1.06055789]
[1746388723847,0.08401732,95566.0,95565.0,1.06055789]
[1746388725152,0.004,95566.0,95565.0,1.06055789]
[1746388735155,0.004,95566.0,95565.0,1.0498502]
[1746388735960,0.0343,95566.0,95565.0,1.0498502]
[1746388737361,0.0343,95566.0,95565.0,1.06033973]
[1746388738156,0.0343,95566.0,95565.0,1.0498502]
[1746388740363,0.0343,95566.0,95565.0,1.06049521]
[1746388740961,0.0343,95566.0,95565.0,1.0498502]
[1746388749465,0.0343,95566.0,95565.0,1.4106502]
[1746388753565,0.0343,95566.0,95565.0,0.6890502]
[1746388753771,0.0343,95566.0,95565.0,1.4106502]
[1746388753959,0.0343,95566.0,95565.0,0.6890502]
[1746388754162,0.0343,95566.0,95565.0,1.4106502]
[1746388762979,0.0343,95566.0,95565.0,1.4730502]
[1746388768972,0.08001732,95576.0,95575.0,0.2092283]
[1746388769170,0.08001732,95576.0,95575.0,0.8000283]
[1746388769878,0.08001732,95576.0,95575.0,0.8646283]
[1746388771479,0.2092225,95578.0,95577.0,0.2092239]
[1746388771673,0.2092225,95578.0,95577.0,0.4092239]
[1746388772071,0.2092225,95578.0,95577.0,0.4732239]
[1746388773683,0.2092225,95578.0,95577.0,0.5356239]
[1746388779987,0.0326,95579.0,95578.0,0.2092217]
[1746388780181,0.0326,95579.0,95578.0,0.4297217]
[1746388780479,0.0326,95579.0,95578.0,0.4613217]
[1746388780686,0.2418195,95579.0,95578.0,0.4613217]
[1746388781071,0.2428195,95579.0,95578.0,0.4613217]
[1746388781486,0.2438195,95579.0,95578.0,0.8221217]
[1746388783886,0.2438195,95579.0,95578.0,0.4613217]
[1746388784081,0.2438195,95579.0,95578.0,0.8221217]
[1746388788993,0.2438195,95579.0,95578.0,0.4613217]
[1746388789189,0.2438195,95579.0,95578.0,0.8221217]
[1746388790787,0.0346,95579.0,95578.0,0.8221217]
[1746388793890,0.2438195,95579.0,95578.0,0.8221217]
[1746388795793,0.0346,95579.0,95578.0,0.8221217]
[1746388797889,0.08001732,95585.0,95584.0,0.2092086]
[1746388798195,0.08001732,95585.0,95584.0,0.3992086]
[1746388798784,0.08001732,95585.0,95584.0,0.4613086]
[1746388799187,0.002,95585.0,95584.0,0.4613086]
[1746388799387,0.004,95585.0,95584.0,0.4613086]
[1746388804399,0.10816162,95605.0,95594.0,0.2091867]
[1746388804599,0.0331,95604.0,95594.0,1.4531467]
[1746388804799,0.2722664,95604.0,95594.0,1.4531467]
[1746388805392,0.08401732,95595.0,95594.0,1.4531467]
[1746388805696,0.08601732,95595.0,95594.0,1.4531467]
[1746388808093,0.006,95595.0,95594.0,1.4531467]
[1746388810398,0.2091679,95603.0,95602.0,0.2091692]
[1746388810597,0.2415679,95603.0,95602.0,0.7399692]
[1746388811099,0.3595679,95603.0,95602.0,0.7399692]
[1746388811805,0.1524,95603.0,95602.0,0.7399692]
[1746388814200,0.0344,95603.0,95602.0,0.7399692]
[1746388814400,0.002,95603.0,95602.0,0.7399692]
[1746388815612,0.0015,95605.0,95604.0,0.2091648]
[1746388815811,0.0015,95605.0,95604.0,0.4991648]
[1746388816108,0.0015,95605.0,95604.0,0.6171648]
[1746388816309,0.08001732,95609.0,95604.0,0.6171648]
[1746388816310,0.08001732,95609.0,95608.0,0.2091561]
[1746388816510,0.08001732,95609.0,95608.0,0.8623161]
[1746388819009,0.08001732,95609.0,95608.0,0.8643161]
[1746388819612,0.031,95614.0,95613.0,0.2091451]
[1746388819806,0.031,95614.0,95613.0,0.7699451]
[1746388820513,0.0632,95614.0,95613.0,0.7699451]
[1746388821312,0.1812,95614.0,95613.0,0.7699451]
[1746388828119,0.1812,95614.0,95613.0,0.8027451]
[1746388837225,0.1812,95614.0,95613.0,0.8359451]
[1746388837426,0.149,95614.0,95613.0,0.8359451]
[1746388842026,0.149,95614.0,95613.0,1.1967451]
[1746388847731,0.149,95614.0,95613.0,0.4751451]
[1746388848233,0.149,95614.0,95613.0,1.1967451]
[1746388849831,0.118,95614.0,95613.0,1.1967451]
[1746388853834,0.19801732,95614.0,95613.0,1.1967451]
[1746388854935,0.19801732,95614.0,95613.0,1.2590651]
[1746388855136,0.19801732,95614.0,95613.0,0.5374651]